Cogmind - Beta 13 @@@ ROGUE MODE // 2024.04.13 @ 09:13:47 Player: escism Result: Destroyed by as-91330 with Assembled Heavy Rifle Performance ------------- Evolutions (0) 0 Regions Visited (2) 400 Robots Destroyed (14) 70 Value Destroyed (277) 277 Prototype IDs (0) 0 Alien Tech Used (0) 0 Bonus (0) 0 TOTAL SCORE: 747 Bonus ------- None Cogmind --------- Core Integrity 0/250 Matter 416/500 Energy 125/125 System Corruption 0% Temperature Cool (84) Movement Core (500) Ox9 Location -10/Mines Parts ------- > --- POWER (1) -------- Light Ion Engine > --- PROPULSION (2) --- (None) > --- UTILITY (2) ------ Large Storage Unit High-capacity Matter Pod > --- WEAPON (2) ------- Assault Rifle > --- INVENTORY (15) --- Wheel Wheel Heat Sink High-capacity Battery (250) EM Pulse Gun Small Laser Light Assault Rifle Light Cannon Grenade Launcher Peak State ------------ > --- POWER ------------ Light Ion Engine > --- PROPULSION ------- Aluminum Leg Aluminum Leg > --- UTILITY ---------- Large Storage Unit Improved Terrain Scanner > --- WEAPON ----------- EM Pulse Gun Small Laser > --- INVENTORY -------- Ion Engine Wheel Wheel Heat Sink High-capacity Matter Pod Assault Rifle Light Assault Rifle Light Cannon Light Cannon Grenade Launcher [Rating: 10] Favorites ----------- Power Light Ion Engine Engine Light Ion Engine Propulsion Aluminum Leg Leg Aluminum Leg Utility Large Storage Unit Device Improved Terrain Scanner Storage Large Storage Unit Weapon Small Laser Energy Gun Small Laser Ballistic Gun Assault Rifle Ballistic Cannon Light Cannon Build | -11 -10 -10 ------- Run | Yrd Mat Min Slots Evolved . | . . . Power . | . . . Propulsion . | . . . Utility . | . . . Weapon . | . . . Parts Attached 19 | 7 11 1 Power 3 | 1 1 1 Engine 3 | 1 1 1 Core . | . . . Reactor . | . . . Propulsion 7 | 2 5 . Treads . | . . . Leg 7 | 2 5 . Wheel . | . . . Hover . | . . . Flight . | . . . Utility 4 | 2 2 . Device 2 | 2 . . Storage 2 | . 2 . Processor . | . . . Hackware . | . . . Protection . | . . . Artifact . | . . . Weapon 5 | 2 3 . Energy Gun 2 | 2 . . Energy Cannon . | . . . Ballistic Gun 2 | . 2 . Ballistic Cannon 1 | . 1 . Launcher . | . . . Special Weapon . | . . . Impact Weapon . | . . . Slashing Weapon . | . . . Piercing Weapon . | . . . Special Melee Weapon . | . . . Unidentified Prototypes . | . . . Parts Lost 6 | . 2 4 Power 1 | . . 1 Propulsion 3 | . 1 2 Utility . | . . . Weapon 2 | . 1 1 Highest Loss Streak 4 | . 2 4 To Critical Strikes . | . . . Average Slot Usage (%) 99 | . 99 100 Engine 14 | . 14 14 Leg 27 | . 27 28 Device 8 | . 13 . Storage 19 | . 14 28 Energy Gun 11 | . 17 . Ballistic Gun 9 | . 7 14 Ballistic Cannon 6 | . 3 14 Naked Turns . | . . . Heaviest Build 34 | 8 34 34 Greatest Support 20 | 20 20 20 Greatest Overweight (x) 3 | . 3 1 Average Overweight (x) . | . . 1 Largest Inventory Capacity 15 | 5 15 15 Average Capacity 10 | 5 12 15 Most Carried 13 | 5 13 10 Average Carried 7 | 3 9 9 Final Capacity 15 | 5 15 15 Final Carried 10 | 5 10 9 Class Distribution -------------------- 100% | Mutant Dominant Class ---------------- Mutant | -10/Materials Mutant | -10/Mines Resources | -11 -10 -10 ----------- Run | Yrd Mat Min Matter Collected 689 | 259 426 4 Remotely . | . . . Salvage Created 343 | 63 259 21 Parts 26 | 7 19 . Haulers Intercepted . | . . . Recyclers Shooed . | . . . Parts Field Recycled . | . . . Retrieved Matter . | . . . Parts Self-Destructed . | . . . Prevented . | . . . Kills | -11 -10 -10 ------- Run | Yrd Mat Min Combat Hostiles Destroyed 13 | 1 10 2 Guns 7 | 1 6 . Cannons 5 | . 3 2 AOE 1 | . 1 . Classes Destroyed 6 | 2 3 1 Worker 1 | . 1 . Tunneler 1 | 1 . . Watcher 1 | . 1 . Swarmer 6 | . 6 . Grunt 5 | 1 4 . Assembled 2 | . . 2 Best Kill Streak 3 | 2 3 2 Combat Bots Only 3 | 1 3 2 Max Kills in Single Turn 1 | 1 1 1 Gunslinging . | . . . Exploded 1 | . 1 . Melee . | . . . Uniques/NPCs Destroyed . | . . . Combat | -11 -10 -10 -------- Run | Yrd Mat Min Hostile Shots Fired 131 | 6 71 54 Missed 43 | 1 26 16 Damage Taken 1235 | 56 457 722 Core 262 | 12 103 147 Absorbed by Shields . | . . . Core Remaining (%) 95 | 95 . . Volleys Fired 65 | 5 55 5 Largest 2 | 2 2 2 Hottest 80 | 80 80 55 Shots Fired 116 | 10 96 10 Gun 104 | 10 89 5 Cannon 12 | . 7 5 Launcher . | . . . Special . | . . . Kinetic 67 | . 57 10 Thermal 21 | 5 16 . Explosive . | . . . Electromagnetic 28 | 5 23 . Robot Hit Streak 6 | 4 6 3 Robot Miss Streak 6 | 1 6 1 Penetration Max . | . . . Secondary Targets 1 | . 1 . Max Gunslinging Chain 1 | . 1 . Shots Hit Robots 55 | 6 43 6 Core Hits 24 | 2 16 6 Critical Kills . | . . . Critical Parts Destroyed . | . . . Critical Strikes 1 | . 1 . Corrupt 1 | . 1 . Melee Attacks . | . . . Impact . | . . . Slashing . | . . . Piercing . | . . . Sneak Attacks . | . . . Combat Hostiles . | . . . Follow-up Attacks . | . . . Damage Inflicted 931 | 88 698 145 Guns 642 | 88 493 61 Cannons 210 | . 126 84 Explosions 79 | . 79 . Melee . | . . . Ramming . | . . . Kinetic 580 | . 435 145 Thermal 180 | 46 134 . Explosive . | . . . Electromagnetic 171 | 42 129 . Impact . | . . . Slashing . | . . . Piercing . | . . . Highest Corruption . | . . . Average Corruption . | . . . Corruption Purged . | . . . Corruption Blocked . | . . . Overload Shots . | . . . Overflow Damage . | . . . Projectiles . | . . . Explosions . | . . . Melee . | . . . Knockbacks 3 | . 2 1 Impact . | . . . Kinetic 3 | . 2 1 Secondary . | . . . Self-Inflicted Damage . | . . . Shots . | . . . Rammed . | . . . Targets Rammed . | . . . Kicked . | . . . Crushed . | . . . Highest Temperature 120 | 120 90 84 Average Temperature 36 | 68 23 32 Received Heat Transfer 329 | 30 159 140 Siege Activations . | . . . Robots Corrupted . | . . . Combat Hostiles . | . . . Parts Fried . | . . . Impact Corruptions . | . . . Robots Melted . | . . . Combat Hostiles . | . . . Parts Melted . | . . . Heat Transferred 325 | 100 225 . Parts Sabotaged . | . . . Parts Stolen . | . . . Parts Stripped . | . . . Power Chain Reactions 1 | . 1 . Alert | -11 -10 -10 ------- Run | Yrd Mat Min Peak Influence 232 | 25 232 31 Initial 31 | . . 31 Average 72 | 6 135 30 Maximum Alert Level 1 | . 1 . Low Security (%) 83 | 100 64 100 Level 1 16 | . 35 . Level 2 . | . . . Level 3 . | . . . Level 4 . | . . . Level 5 . | . . . High Security . | . . . Max Security . | . . . Squads Dispatched 1 | . 1 . Investigation . | . . . Extermination . | . . . Reinforcement 1 | . 1 . Assault . | . . . Garrison . | . . . Intercept . | . . . Searches Triggered . | . . . Construction Impeded . | . . . Haulers Reinforced . | . . . Active Scanning Responses . | . . . Cargo Convoy Interrupts . | . . . Stealth | -11 -10 -10 --------- Run | Yrd Mat Min Distress Signals . | . . . Communications Jammed . | . . . Distress Signals . | . . . Times Spotted 33 | 1 17 15 Peak Tracking Total 14 | 1 4 14 Tactical Retreats 1 | . 1 . Traps | -11 -10 -10 ------- Run | Yrd Mat Min Traps Triggered . | . . . Indirectly . | . . . Trap Hack Attempts . | . . . Triggered . | . . . Disarmed . | . . . Reprogrammed . | . . . Reused . | . . . Traps Extracted . | . . . Installed . | . . . Triggered . | . . . Machines | -11 -10 -10 ---------- Run | Yrd Mat Min Machines Disabled 1 | . 1 . Max in Single Turn 1 | . 1 . Machines Repaired . | . . . Machines Dismantled . | . . . Machines Sabotaged . | . . . Overloaded Fab Kills . | . . . Hacking | -11 -10 -10 --------- Run | Yrd Mat Min Machines Accessed 4 | . 4 . Terminals 3 | . 3 . Fabricators . | . . . Repair Stations . | . . . Recycling Units 1 | . 1 . Scanalyzers . | . . . Garrison Access . | . . . Total Hacks 8 | . 8 . Successful 5 | . 5 . Failed 3 | . 3 . Catastrophic . | . . . Database Lockouts . | . . . Manual . | . . . Terminals 7 | . 7 . Fabricators . | . . . Repair Stations . | . . . Recycling Units 1 | . 1 . Scanalyzers . | . . . Garrison Access . | . . . Terminal Hacks 4 | . 4 . Record 2 | . 2 . Locate Traps 1 | . 1 . Hauler Manifests 1 | . 1 . Fabricator Hacks . | . . . Repair Station Hacks . | . . . Recycling Unit Hacks 1 | . 1 . Retrieve Matter 1 | . 1 . Scanalyzer . | . . . Garrison Access Hacks . | . . . Unauthorized Hacks . | . . . Terminals . | . . . Fabricators . | . . . Repair Stations . | . . . Recycling Units . | . . . Scanalyzers . | . . . Garrison Access . | . . . Data Cores Recovered . | . . . Used . | . . . Hacking Detections 1 | . 1 . Full Trace Events . | . . . Feedback Events . | . . . Feedback Blocked . | . . . Robot Schematics Acquired . | . . . Robots Built . | . . . Authchips . | . . . Time . | . . . Total Robot Build Rating . | . . . Part Schematics Acquired . | . . . Parts Built . | . . . Authchips . | . . . Time . | . . . Total Part Build Rating . | . . . Parts Repaired . | . . . Time . | . . . Parts Recycled . | . . . Recycled Matter . | . . . Retrieved Matter . | . . . Retrieved Components . | . . . Parts Scanalyzed . | . . . Part Schematics Acquired . | . . . Parts Damaged . | . . . Bothacking | -11 -10 -10 ------------ Run | Yrd Mat Min Used RIF Installer . | . . . Robots Hacked . | . . . Non-combat . | . . . Combat . | . . . Robot Hacks Applied . | . . . Relay Couplers Released . | . . . Fabnet Peak Effective % . | . . . Robots Rewired . | . . . Allies Hacked . | . . . Hacks Repelled . | . . . Allies | -11 -10 -10 -------- Run | Yrd Mat Min Total Allies . | . . . Largest Group . | . . . Highest-Rated Group . | . . . Highest-Rated Ally . | . . . Total Orders . | . . . Ally Attacks . | . . . Total Damage . | . . . Kills . | . . . Allies Corrupted . | . . . Allies Melted . | . . . Intel | -11 -10 -10 ------- Run | Yrd Mat Min Robot Analysis Total . | . . . Derelict Logs Recovered 1 | . . 1 Drone Launches . | . . . Drone Recoveries . | . . . Exploration | -11 -10 -10 ------------- Run | Yrd Mat Min Turns Passed 1743 | 532 817 394 Spaces Moved 598 | 75 324 199 Core 20 | 20 . . Treads . | . . . Legs 578 | 55 324 199 Wheels . | . . . Hover . | . . . Flight . | . . . Fastest Speed 50 | 50 120 190 Average Speed 169 | 101 172 190 Slowest Speed 330 | 120 330 190 Overloaded Moves . | . . . Propulsion Burnouts . | . . . Robots Hopped . | . . . Cave-ins Triggered . | . . . Exploration Rate (%) 33 | 10 45 44 Regions Visited 2 Branch Regions 1 Pre-discovered Areas . | . . . Known Exits Taken . | . . . Unknown Exits Taken 2 | 1 1 . Scrap Searched . | . . . Spaces Dug . | . . . Terrain Destroyed 3 | . 3 . Melee . | . . . Projectile . | . . . AOE 3 | . 3 . Terrain Rammed . | . . . Walls Destroyed . | . . . Machines Disabled . | . . . Actions | -11 -10 -10 --------- Run | Yrd Mat Min Total 1206 | 517 484 205 Wait 504 | 426 78 . Move 596 | 74 323 199 Hop . | . . . Pick Up 16 | 5 11 . Fast Attach 9 | 7 2 . Attach 3 | . 2 1 Detach . | . . . Swap 7 | . 7 . Drop 6 | . 6 . Fire 65 | 5 55 5 Melee . | . . . Ram . | . . . Kick . | . . . Crush . | . . . Escape Stasis . | . . . Rewire . | . . . Trap . | . . . Miscellaneous . | . . . Route ------- -11/Scrapyard -10/Materials (discovered 2 exits: [*Min x2]) -10/Mines History --------- Turn | Location | Event 2 | -11/Scrapyard | Met Revision 17 66 | -11/Scrapyard | Discovered new exit (range 8) 533 | -11/Scrapyard | Entered Materials 534 | -10/Materials | Build established: Mutant 1106 | -10/Materials | Discovered new exit (range 15) 1329 | -10/Materials | Discovered new exit (range 7) 1350 | -10/Materials | Entered Mines 1592 | -10/Mines | Learned location of 1 exit from Materials 1716 | -10/Mines | Assembled infested the area 1733 | -10/Mines | Core integrity fell below 50% 1740 | -10/Mines | Core integrity fell below 20% 1744 | -10/Mines | Destroyed by as-91330 with Assembled Heavy Rifle Last Messages --------------- T-07 Excavator is excavating. K-01 Serf collects debris. T-07 Excavator is excavating. K-01 Serf collects debris. U-05 Engineer lays Concrete. U-05 Engineer builds a Wall. U-05 Engineer lays Concrete. K-01 Serf collects debris. K-01 Serf cleans the Laser Drill. Acquired derelict log, extracted data. Data stored: Materials exits (x1). K-01 Serf collects debris. ALERT: Infestation in the mines, dispatching Demolisher response squad. as-43165 knocked back. as-63492 destroyed. Acquired 4 matter. Ion Engine destroyed. as-73953 destroyed. Aluminum Leg destroyed. Lgt. Cannon destroyed. Map ----- +----------------------------------------------------+ | ## #????# ### ##??? | | ?#### ##????## #??? | | ????####??????# #??? | | ??????????????# ##??? | | ??????????????# #####???? | | ??????????????# #####???????? | | ???#######????## ##???????????? | | ???# #?????## #????????????? | | ???# #??????# ##????????????? | | ???# #??????# #?????????????? | | #### """ #??????# ##????????????? | | """ #??????# ##???????????? | | """ #??????## ###?????????? | | ## # #???????## ##????????? | | ?# #######????????## ##???????? | | ?# #???????????????## #???????? | | ?# #????????????????## ##??????? | | ?# #?????????????????## ##?????? | | ?# #??????????????????## ##????? | | ?# #???????????????????# ##???? | | ?# ??????????????????## #???? | | ??##??????????????????# #???? | | ??????????????????????# #???? | | ?????????????????????## ##???? | | ????????????????????## a ##????? | | ????????????????????# a@ ##?????? | | ????????????????????# aaa##??????? | | ????????????????????## aa##???????? | | ?????????????????????## aa#????????? | | ??????????????????????##aaa#???????? | | ?????????????????????? a #??????? | | ????????????????????? % #?????? | | ???????????????????? ##### #????? | | ???????????????????# ?????# #???? | | ???????????????????# ???????# #???? | | ???????????????????#?????????###???? | | ???????????????????????????????????? | | ???????????????????????????????????? | | ???????????????????????????????????? | | ???????????????????????????????????? | | ???????????????????????????????????? | | ???????????????????????????????????? | | ???????????????????????????????????? | | ???????????????????????????????????? | | ???????????????????????????????????? | | ???????????????????????????????????? | | ???????????????????????????????????? | | ???????????????????????????????????? | | ???????????????????????????????????? | | ???????????????????????????????????? | +----------------------------------------------------+ Best States ------------- Heat Dissipation 35 Energy Generation 10 Energy Capacity 250 Matter Stores 490 Matter Capacity 500 Sight Range 16 Terrain Scan Range 16 Terrain Scan Density 10 Evasion (%) 55 Item Schematics ----------------- None Robot Schematics ------------------ None Fabricated ------------ Nothing Alien Tech Used ----------------- None Achievements -------------- Shopping List Challenges ------------ None Game ------ Seed LayeredAerolevMaul Manual? 0 Play Time 00:21:54 Cumulative 2.6 hours Start 2024.04.12 @ 22:46:56 End 2024.04.13 @ 09:13:47 Sessions 4 Manual Loads 0 Difficulty Rogue Special Mode None Game No. 3 Rogue 3 Adventurer 0 Explorer 0 Win Type - Total 0 Types 0/0/0/0/0/0/0/0/0 Lore% 1 Gallery% 4 Achievement% 5 Wizard Run 0 Options --------- Layout 0 ASCII 0 Keyboard 0 Movement Mouse Keybinds 0 Fullscreen 1 Font 24/Smallcaps Map View 38x25 Zoom Use 97% Tactical HUD 0 Map Filters NONE Filters NONE Steam 1 RUN: 09762777-59c2-4aee-a8b1-b0006e33ef4f